bitfinex/quotes_ETHUSD_20251116
["timestamp","ask_amount","ask_price","bid_price","bid_amount"]
[1763261453760,1.1209,3202.9,3202.8,0.001]
[1763261454547,1.1209,3202.9,3202.0,0.001]
[1763261454548,0.405504,3202.8,3202.0,0.001]
[1763261454747,0.1856,3202.1,3202.0,0.001]
[1763261455274,0.6564,3202.1,3202.0,0.001]
[1763261456086,0.943,3202.1,3202.0,0.001]
[1763261456287,0.1818,3202.9,3202.0,0.928]
[1763261456466,0.1818,3203.0,3202.1,0.2119295]
[1763261456671,0.1818,3203.0,3202.1,0.1807]
[1763261458491,0.48997935,3202.8,3202.1,0.1807]
[1763261459987,0.4708,3202.7,3202.0,0.001]
[1763261460387,0.4708,3202.7,3202.1,0.1807]
[1763261460794,0.4708,3202.7,3202.0,0.001]
[1763261464294,0.48997935,3202.8,3202.0,0.001]
[1763261465476,0.4889,3202.7,3202.0,0.001]
[1763261465676,0.4668,3202.1,3202.0,0.001]
[1763261466297,0.9557,3202.1,3202.0,0.001]
[1763261466793,0.4889,3202.6,3202.0,0.001]
[1763261466997,0.4668,3202.1,3202.0,0.001]
[1763261467197,0.9557,3202.1,3202.0,0.001]
[1763261469597,0.4668,3202.1,3202.0,0.001]
[1763261471478,13.63947238,3218.5,3202.0,0.9664]
[1763261471479,0.49005073,3203.7,3202.0,0.9664]
[1763261471707,14.65976851,3204.2,3202.3,0.474]
[1763261471708,0.6822,3203.2,3202.3,0.474]
[1763261471910,0.4889,3203.0,3202.0,0.001]
[1763261473418,0.4889,3203.0,3202.1,0.1988]
[1763261475114,0.4889,3203.0,3202.0,0.001]
[1763261476833,0.16327458,3202.9,3202.0,0.001]
[1763261477005,0.405504,3202.8,3202.0,0.001]
[1763261477340,0.4984,3202.1,3202.0,0.001]
[1763261477699,0.9859,3202.1,3202.0,0.001]
[1763261480028,3.52783924,3202.8,3202.0,0.001]
[1763261480243,0.4875,3202.8,3202.0,0.6787]
[1763261480949,0.16327458,3202.9,3202.1,0.4601]
[1763261482353,0.65077458,3202.9,3202.0,0.1998]
[1763261483246,0.65077458,3202.9,3202.0,0.6599]
[1763261485322,0.65077458,3202.9,3202.0,0.1998]
[1763261485658,0.4875,3202.8,3202.0,0.1998]
[1763261487772,0.4875,3202.8,3202.0,0.001]
[1763261488658,0.4895,3202.8,3202.0,0.001]
[1763261489034,0.4895,3202.8,3201.3,1.94491522]
[1763261489274,0.4895,3202.8,3201.3,1.1347408]
[1763261490269,0.4895,3202.8,3201.3,1.94491522]
[1763261490771,0.4895,3202.8,3201.5,0.19569152]
[1763261491273,0.4895,3202.8,3201.5,0.65579152]
[1763261491470,3.1223655,3202.7,3201.5,0.4611]
[1763261491669,3.611812,3202.8,3201.5,0.4611]
[1763261491876,0.4875,3202.7,3201.5,0.4611]
[1763261492537,0.4875,3202.7,3201.5,0.001]
[1763261492865,3.12246299,3202.6,3201.5,0.001]
[1763261493060,0.4984,3201.6,3201.5,0.001]
[1763261494485,0.9688,3201.6,3201.5,0.001]
[1763261494682,0.4984,3201.6,3201.5,0.001]
[1763261494886,0.9688,3201.6,3201.5,0.001]
[1763261496555,0.4984,3201.6,3201.5,0.001]
[1763261497486,0.9688,3201.6,3201.5,0.001]
[1763261498589,4.09223828,3201.6,3201.5,0.001]
[1763261498887,0.9688,3201.6,3201.5,0.001]
[1763261499289,1.45905423,3201.6,3201.5,0.001]
[1763261499456,4.58249251,3201.6,3201.5,0.001]
[1763261499792,0.9688,3201.6,3201.5,0.001]
[1763261499962,4.49774228,3201.6,3201.5,0.001]
[1763261500293,5.63148308,3201.6,3201.5,0.001]
[1763261500514,1.7396448,3201.5,3201.3,0.001]
[1763261500657,0.859404,3201.4,3201.3,0.001]
[1763261500994,4.45343741,3201.4,3201.3,0.001]
[1763261501806,0.405504,3201.1,3200.8,0.001]
[1763261502001,1.6041408,3201.3,3200.8,0.001]
[1763261502002,1.052904,3200.9,3200.8,0.001]
[1763261502482,1.523304,3200.9,3200.8,0.001]
[1763261502681,2.01369525,3200.9,3200.8,0.001]
[1763261502914,5.13781659,3200.9,3200.8,0.001]
[1763261503220,6.27155739,3200.9,3200.8,0.001]
[1763261505617,1.5892448,3200.8,3200.4,0.001]
[1763261505816,2.0596448,3200.8,3200.4,0.001]
[1763261506021,0.638304,3200.5,3200.4,0.001]
[1763261506405,1.108704,3200.5,3200.4,0.001]
[1763261507006,1.27213164,3200.5,3200.4,0.001]
[1763261507207,5.53038423,3200.5,3200.4,0.001]
[1763261507409,1.5392448,3200.4,3200.1,0.001]
[1763261507726,0.855204,3200.2,3200.1,0.001]
[1763261508216,6.91911331,3200.2,3200.1,0.001]
[1763261508580,6.91911331,3200.2,3198.6,0.4516]
[1763261508581,6.91911331,3200.2,3198.5,0.1988]
[1763261508787,1.5392448,3199.4,3198.2,0.1988]
[1763261508988,0.405504,3199.7,3198.2,0.1988]
[1763261509219,4.45976851,3199.9,3198.2,0.1988]
[1763261509220,0.405504,3199.2,3198.2,0.1988]
[1763261509435,0.405504,3199.2,3197.7,0.4516]
[1763261509654,0.4704,3199.1,3198.0,0.4516]
[1763261509831,0.1955,3199.7,3199.1,0.4695]
[1763261510465,0.1955,3199.7,3199.1,0.6593]
[1763261510634,0.1955,3200.0,3199.2,0.4516]
[1763261510960,0.1955,3200.0,3199.1,0.6593]
[1763261511126,0.4704,3199.9,3198.8,0.4516]
[1763261511335,0.6659,3200.0,3198.8,0.4516]
[1763261511531,0.1735,3201.7,3199.9,0.4695]
[1763261511736,0.1955,3200.9,3199.9,0.4695]
[1763261511926,0.1955,3200.9,3200.0,0.4516]
[1763261512320,0.1955,3200.9,3199.9,0.4695]
[1763261512321,0.1955,3200.9,3199.8,0.1898]
[1763261512556,0.63382764,3200.5,3199.8,0.1898]
[1763261512928,0.405504,3200.4,3199.0,0.1807]
[1763261513133,0.16342764,3200.5,3199.2,4.45976851]
[1763261513459,0.16342764,3200.5,3199.3,0.94273685]
[1763261513658,0.16342764,3200.5,3199.4,0.4516]
[1763261514560,0.16342764,3200.5,3199.5,0.4516]
[1763261514723,0.405504,3200.4,3199.0,4.64046851]
[1763261514919,0.405504,3200.4,3199.1,0.4516]
[1763261515132,0.4704,3200.3,3199.1,0.4516]
[1763261515335,0.4905757,3200.2,3199.1,0.4516]
[1763261516343,0.4905757,3200.2,3199.1,0.96080685]
[1763261516880,0.4905757,3200.2,3199.2,0.4516]
[1763261517178,0.9609757,3200.2,3199.2,0.4516]
[1763261518283,0.4704,3200.1,3199.2,0.4516]
[1763261519069,0.4905757,3200.2,3199.2,0.4516]
[1763261519473,0.4905757,3200.2,3200.1,0.6593]
[1763261519657,0.4905757,3200.2,3200.1,0.4695]
[1763261519976,1.4148757,3200.2,3199.0,0.1807]
[1763261520276,0.4905757,3200.2,3199.2,4.45976851]
[1763261520503,0.4905757,3200.2,3198.1,3.12685112]
[1763261520504,0.05,3199.3,3197.9,0.81017442]
[1763261520776,1.76759684,3200.1,3198.2,4.45976851]
[1763261520977,0.65403174,3200.1,3199.2,0.4695]
[1763261521177,0.1955,3200.8,3199.0,4.45976851]
[1763261521178,0.6659,3200.8,3200.0,0.4695]
[1763261521475,0.405504,3200.7,3200.0,0.4695]
[1763261521678,0.65403174,3201.2,3200.0,0.4695]
[1763261521679,0.4704,3201.5,3200.1,0.6414]
[1763261521970,0.4704,3201.5,3200.2,0.4516]
[1763261522291,0.63378088,3201.5,3200.2,0.4516]
[1763261522466,0.4704,3201.5,3200.2,0.4516]
[1763261523141,0.002,3200.5,3200.2,0.4516]
[1763261523542,0.002,3200.5,3200.4,0.4695]
[1763261524955,0.002,3200.5,3200.4,0.9468]
[1763261529393,0.002,3200.8,3200.4,1.15485408]
[1763261529566,0.002,3200.8,3200.7,0.4513]
[1763261529896,0.002,3200.8,3200.7,0.9286]
[1763261533497,0.002,3200.8,3200.7,2.0623408]
[1763261534998,0.002,3200.8,3200.7,0.4513]
[1763261535201,0.002,3200.8,3200.7,0.9326]
[1763261536704,0.002,3200.8,3200.1,0.1898]
[1763261536902,0.3845,3200.8,3200.1,0.1898]
[1763261537205,0.002,3200.8,3200.2,0.4813]
[1763261537512,0.002,3200.8,3200.7,0.4705]
[1763261537887,0.002,3200.8,3200.7,0.9518]
[1763261538839,0.002,3200.8,3200.3,0.4813]
[1763261540784,0.002,3200.8,3200.7,0.4705]
[1763261541405,0.002,3200.8,3200.3,0.4813]
[1763261541885,0.002,3200.8,3200.7,0.4705]
[1763261542395,0.002,3200.8,3200.7,0.9518]
[1763261551142,0.002,3200.8,3200.7,1.12788886]
[1763261551308,0.002,3200.8,3200.7,1.53339286]
[1763261554315,0.002,3200.8,3200.7,1.93697749]
[1763261554654,0.002,3200.8,3200.7,0.9518]
[1763261558150,0.002,3200.8,3200.7,0.4705]
[1763261558359,0.9612,3200.8,3200.2,0.80908863]
[1763261558524,0.9612,3200.8,3200.0,0.001]
[1763261558525,0.188,3200.6,3200.0,0.001]
[1763261559657,0.188,3200.6,3200.3,0.001]
[1763261559848,0.002,3200.8,3200.5,0.4832]
[1763261560357,0.002,3200.8,3200.7,0.4832]
[1763261560561,0.002,3200.8,3200.7,0.888704]
[1763261560728,0.002,3201.2,3200.8,0.405504]
[1763261560928,0.002,3201.2,3201.1,1.6169408]
[1763261561338,0.002,3201.2,3201.1,2.0898408]
[1763261564458,0.002,3201.2,3201.1,0.4832]
[1763261564762,0.002,3201.2,3201.1,0.9561]
[1763261567061,0.002,3201.2,3201.1,0.4832]
[1763261567260,0.4942,3201.2,3200.8,0.81340884]
[1763261567439,0.002,3201.2,3201.1,0.4832]
[1763261567638,0.002,3201.2,3201.1,0.9561]
[1763261568174,0.002,3201.2,3200.9,0.20786871]
[1763261568538,0.002,3201.2,3201.1,0.4832]
[1763261568978,0.002,3201.2,3201.1,0.9561]
[1763261569771,0.002,3201.2,3200.8,0.81340884]
[1763261569981,0.002,3201.2,3201.1,0.4832]
[1763261570140,0.002,3201.2,3201.1,0.9561]
[1763261570336,0.002,3201.2,3201.1,1.13305088]
[1763261570645,0.002,3201.2,3201.1,0.66015088]
[1763261570873,0.002,3201.2,3201.1,0.4832]
[1763261572850,0.002,3201.2,3200.8,0.81340884]
[1763261573180,0.002,3201.2,3201.1,0.4832]
[1763261575998,0.002,3201.2,3201.1,0.9561]
[1763261576658,0.002,3201.2,3201.1,2.17501284]
[1763261576860,0.002,3201.2,3201.1,6.75572267]
[1763261577059,0.002,3201.2,3201.1,6.72448341]
[1763261578969,0.002,3201.6,3201.2,1.5392448]
[1763261579275,0.002,3201.6,3201.5,6.83735683]
[1763261579598,0.002,3201.6,3201.5,7.32055683]
[1763261579767,0.002,3201.6,3201.5,8.7759929]
[1763261580102,0.002,3201.6,3201.5,8.09723035]
[1763261580285,0.002,3202.8,3201.6,1.5392448]
[1763261580613,0.002,3202.8,3202.7,5.28204948]
[1763261580812,0.002,3202.8,3202.7,5.68755348]
[1763261581011,0.002,3202.8,3202.7,11.29756228]
[1763261581212,0.002,3202.8,3202.7,12.38096733]
[1763261581414,0.002,3202.8,3202.7,12.1081858]
[1763261581617,0.002,3202.8,3202.7,8.9858203]
[1763261582388,0.002,3202.8,3202.7,2.4979433]
[1763261582590,0.002,3202.8,3202.7,1.1337408]
[1763261582788,0.002,3202.8,3202.7,1.6169408]
[1763261583189,0.002,3202.8,3202.7,1.1337408]
[1763261583514,0.002,3202.8,3202.7,1.6169408]
[1763261583712,0.002,3202.8,3202.7,2.4953448]
[1763261583917,0.002,3202.8,3202.7,7.36422876]
[1763261584604,0.928,3202.8,3202.7,1.1337408]
[1763261584802,0.928,3202.8,3201.7,5.429973]
[1763261585001,0.1127,3202.3,3201.5,0.98253607]
[1763261585313,0.1127,3202.3,3201.3,0.81062352]
[1763261585514,0.1127,3202.3,3201.4,0.405504]
[1763261585719,0.1127,3202.3,3201.4,0.4884]
[1763261585887,0.1127,3202.3,3201.4,1.29902352]
[1763261586222,0.1127,3202.3,3201.5,0.405504]
[1763261586427,0.1127,3202.3,3201.6,4.78980223]
[1763261586890,0.4537,3202.2,3201.1,6.86457232]
[1763261587090,0.4537,3202.2,3201.2,1.1337408]
[1763261587718,0.4557,3202.8,3202.1,0.4518]
[1763261588320,0.4557,3202.8,3201.9,4.46033634]
[1763261589424,0.4557,3202.8,3201.9,4.90636997]
[1763261589631,0.4557,3202.8,3202.0,1.1337408]
[1763261589789,0.002,3202.8,3202.0,1.6221408]
[1763261589984,0.4557,3202.8,3202.0,1.1337408]
[1763261590310,0.4557,3202.8,3202.1,0.78351108]
[1763261590689,0.4557,3202.8,3202.1,0.60401108]
[1763261590925,0.002,3202.8,3202.4,1.1337408]
[1763261591128,0.002,3202.8,3202.7,0.4518]
[1763261592228,0.002,3202.8,3202.4,1.1337408]
[1763261592391,0.002,3202.8,3202.5,0.60824771]
[1763261592591,0.002,3202.8,3202.7,0.4518]
[1763261594994,0.002,3202.8,3202.4,4.46033634]
[1763261595194,0.002,3202.8,3202.4,4.91963634]
[1763261595406,0.002,3202.8,3202.7,0.4849]
[1763261595811,0.002,3202.8,3202.7,1.58872173]
[1763261596015,0.002,3202.8,3202.7,1.55749808]
[1763261598759,0.002,3202.8,3202.7,2.69123888]
[1763261598909,0.002,3202.8,3202.7,1.55749808]
[1763261599353,0.002,3202.8,3202.7,5.81360438]
[1763261599846,0.002,3202.8,3202.7,3.5018624]
[1763261601141,0.002,3202.8,3202.7,6.6242279]
[1763261601348,0.002,3203.1,3202.8,1.5392448]
[1763261601659,0.002,3203.1,3203.0,6.48448114]
[1763261602029,0.002,3203.1,3203.0,6.94378114]
[1763261603141,0.002,3203.1,3203.0,10.06585419]
[1763261603344,0.002,3203.1,3203.0,7.75284695]
[1763261604329,0.002,3203.1,3203.0,10.87492]
[1763261604528,0.002,3203.1,3203.0,12.45650562]
[1763261604762,0.4513,3204.8,3203.1,1.1337408]
[1763261605058,0.4513,3204.7,3204.0,1.1337408]
[1763261607459,0.1966,3205.2,3204.3,4.46033634]
[1763261607674,0.6479,3205.2,3204.4,1.1337408]
[1763261607834,0.4513,3205.0,3204.4,1.1337408]
[1763261608026,0.4891,3204.5,3204.4,1.1337408]
[1763261608334,0.4513,3205.0,3204.4,1.69314851]
[1763261609559,0.1966,3205.2,3204.4,1.69314851]
[1763261609940,0.6479,3205.2,3204.4,1.69314851]
[1763261610328,0.4513,3205.1,3204.4,0.55940771]
[1763261610854,0.1966,3205.2,3204.6,4.46033634]
[1763261611063,0.4513,3205.1,3204.7,0.44603363]
[1763261611569,0.4891,3204.8,3204.7,0.44603363]
[1763261612059,0.9404,3204.8,3204.4,0.55940771]
[1763261612573,0.4891,3204.8,3204.4,0.55940771]
[1763261613077,0.9404,3204.8,3204.4,0.55940771]
[1763261613953,0.4891,3204.8,3204.4,0.55940771]
[1763261614601,0.9547,3204.8,3204.4,0.55940771]
[1763261614779,0.9547,3204.8,3204.5,0.16931485]
[1763261616154,0.4911,3204.8,3204.5,0.16931485]
[1763261617049,0.4911,3204.8,3204.1,0.644]
[1763261617978,0.002,3204.8,3204.7,0.4872]
[1763261618349,0.002,3204.8,3204.7,2.4780448]
[1763261618761,0.002,3204.8,3204.7,1.344304]
[1763261620086,0.002,3204.8,3204.7,5.59846168]
[1763261620292,0.002,3204.8,3204.7,7.92242758]
[1763261620476,0.002,3204.8,3204.7,8.19716834]
[1763261621377,0.002,3204.8,3204.7,3.99334641]
[1763261621690,0.002,3204.8,3204.7,8.19716834]
[1763261625501,0.4862,3204.8,3204.7,2.59870666]
[1763261625679,0.4862,3204.8,3204.2,0.80865211]
[1763261625680,0.9518,3204.8,3204.2,0.80865211]
[1763261625916,0.002,3204.8,3204.3,1.1337408]
[1763261626082,0.002,3204.8,3204.4,0.64027293]
[1763261626283,0.002,3204.8,3204.5,0.03120611]
[1763261626607,0.4842,3204.5,3204.1,0.80865211]
[1763261626798,0.0935,3204.4,3204.0,0.80865211]
[1763261626991,0.4676,3204.8,3204.0,0.80865211]
[1763261627393,0.4842,3204.1,3203.9,0.80865211]
[1763261627594,0.4842,3204.1,3203.8,0.80865211]
[1763261627984,0.4656,3204.4,3203.8,0.80865211]
[1763261628384,0.4656,3204.4,3203.9,0.80865211]
[1763261629421,0.4842,3204.0,3203.6,0.81088741]
[1763261629724,0.4842,3204.0,3203.5,0.81088741]
[1763261630124,0.4656,3204.5,3203.6,1.29370229]
[1763261630414,0.4656,3204.5,3203.7,0.81088741]
[1763261630786,0.4656,3204.5,3203.8,0.81088741]
[1763261632395,0.4842,3203.9,3203.8,1.04547666]
[1763261632918,0.4656,3204.3,3203.8,1.04547666]
[1763261634915,0.4656,3204.3,3203.8,0.81088741]
[1763261635216,0.4676,3204.3,3203.8,0.81088741]
[1763261636185,0.4676,3204.3,3203.7,0.81088741]
[1763261636186,0.5802,3203.9,3203.7,0.81088741]
[1763261636385,0.096,3203.9,3203.6,0.81088741]
[1763261636623,0.4656,3204.2,3203.6,0.81088741]
[1763261637192,0.4676,3204.3,3203.7,0.81088741]
[1763261637386,0.4656,3204.2,3203.6,0.81088741]
[1763261638085,0.4842,3203.7,3203.6,0.81088741]
[1763261638289,0.4656,3204.2,3203.6,1.00031666]
[1763261638914,0.4656,3204.2,3203.6,0.81088741]
[1763261639315,0.4656,3204.2,3203.5,0.81088741]
[1763261640332,0.4656,3204.2,3203.6,0.81088741]
[1763261640936,0.002,3204.3,3203.6,0.81088741]
[1763261641439,0.4676,3204.3,3203.6,0.81088741]
[1763261641817,0.4676,3204.3,3203.7,0.81088741]
[1763261642343,0.4676,3204.3,3203.7,1.94462821]
[1763261642544,0.4676,3204.3,3203.8,0.57746282]
[1763261643134,0.6785,3203.8,3203.7,1.1337408]
[1763261643656,1.1441,3203.8,3203.7,1.1337408]
[1763261644344,1.1441,3203.8,3203.5,0.81088741]
[1763261644510,0.4998,3203.4,3203.0,0.001]
[1763261644842,0.0559,3203.3,3203.0,0.001]
[1763261645528,0.5465,3203.3,3203.0,0.001]
[1763261646256,0.4953,3203.1,3203.0,0.001]
[1763261646623,0.1943,3203.8,3203.0,0.001]
[1763261646825,0.6849,3203.8,3203.0,0.001]
[1763261647043,0.4998,3203.1,3203.0,0.001]
[1763261647428,0.9904,3203.1,3203.0,0.001]
[1763261647812,0.9904,3203.1,3202.3,0.001]
[1763261647813,0.4906,3203.0,3202.3,0.001]
[1763261648159,0.0559,3202.8,3202.3,0.001]
[1763261648652,0.4936,3202.4,3202.3,0.001]
[1763261649059,0.9842,3202.4,3202.3,0.001]
[1763261649268,0.4906,3202.7,3202.3,0.001]
[1763261649867,0.4998,3202.4,3202.3,0.001]
[1763261650169,0.4906,3202.7,3202.3,0.001]
[1763261650384,0.4998,3202.4,3202.3,0.001]
[1763261650526,0.9904,3202.4,3202.3,0.001]
[1763261651021,0.4998,3202.4,3202.3,0.001]
[1763261651262,0.1943,3203.8,3202.3,0.475]
[1763261651426,0.6832,3203.4,3202.4,0.405504]
[1763261651632,0.6332,3203.4,3202.4,0.405504]
[1763261651827,0.1926,3203.4,3202.3,0.406504]
[1763261652165,0.1926,3203.4,3202.4,0.4905]
[1763261652524,0.1926,3203.4,3202.5,1.53570951]
[1763261652872,0.1926,3203.4,3202.5,0.40196871]
[1763261653217,0.1926,3203.4,3202.4,0.4905]
[1763261653636,0.1943,3203.8,3202.4,0.4905]
[1763261653637,0.6461,3203.8,3202.5,6.18453265]
[1763261653863,0.6461,3203.8,3202.7,0.405504]
[1763261654043,0.6461,3203.8,3202.8,0.03122268]
[1763261654248,0.6461,3203.8,3202.9,0.15704675]
[1763261654448,0.6461,3203.8,3203.0,1.16496153]
[1763261654671,0.002,3203.4,3202.9,0.15704675]
[1763261655948,0.002,3203.4,3202.9,0.60994675]
[1763261656248,0.002,3203.4,3203.3,0.5389]
[1763261656655,0.002,3203.4,3203.3,0.9918]
[1763261656871,0.002,3203.4,3203.3,1.51966839]
[1763261657734,0.002,3203.4,3203.3,0.9918]
[1763261657941,0.002,3203.4,3203.3,6.76744831]
[1763261658126,0.002,3203.4,3203.3,6.73623051]
[1763261658555,0.002,3203.4,3203.3,5.65282546]
[1763261658958,0.002,3203.4,3203.3,6.77019769]
[1763261659254,0.002,3203.4,3203.3,8.42965138]
[1763261659458,0.002,3203.4,3203.3,6.8045438]
[1763261661041,0.4658,3203.4,3203.3,2.76265901]
[1763261661240,0.4658,3203.4,3203.1,1.08629746]
[1763261661442,0.9176,3203.4,3203.1,1.08629746]
[1763261662274,0.1021,3203.2,3202.9,1.08629746]
[1763261662444,0.1021,3203.2,3202.7,1.08629746]
[1763261663346,0.1021,3203.2,3202.8,0.22200383]
[1763261663549,0.5539,3203.2,3202.8,0.22200383]
[1763261663957,0.5539,3203.2,3202.6,1.1337408]
[1763261663958,0.4602,3202.9,3202.6,1.08629746]
[1763261664264,0.4518,3203.2,3202.4,0.001]
[1763261664265,0.4566,3202.7,3202.4,0.001]
[1763261664467,0.1092,3202.5,3202.4,0.001]
[1763261666777,0.4638,3202.5,3202.4,0.001]
[1763261667294,0.002,3203.4,3202.5,0.405504]
[1763261667598,0.002,3203.4,3202.9,1.08629746]
[1763261667803,0.002,3203.4,3203.0,1.30830129]
[1763261668102,0.002,3203.4,3203.0,1.76120129]
[1763261668303,0.002,3203.4,3203.1,0.68031975]
[1763261668499,0.002,3203.4,3203.3,0.4889]
[1763261668784,0.002,3203.4,3203.3,1.6226408]
[1763261668986,0.002,3203.4,3203.3,2.16200178]
[1763261669381,0.002,3203.4,3203.3,1.02826098]
[1763261670201,0.002,3203.4,3203.3,5.6892391]
[1763261670414,0.002,3203.4,3203.3,1.02826098]
[1763261670707,0.002,3203.4,3203.3,2.56750578]
[1763261670923,0.002,3203.4,3203.3,6.17340424]
[1763261674009,0.002,3203.4,3203.3,6.17440424]
[1763261674946,0.002,3203.4,3203.3,3.05262358]
[1763261675103,0.002,3203.4,3203.3,0.54036098]
[1763261675303,0.002,3203.4,3203.3,0.001]
[1763261675502,0.002,3203.4,3203.3,1.6212408]
[1763261675708,0.002,3203.4,3203.3,5.4512408]
[1763261675910,0.9704,3203.4,3203.3,2.22321189]
[1763261676106,0.9704,3203.4,3203.3,0.001]
[1763261681646,0.4981,3203.4,3203.3,0.001]
[1763261682043,0.9704,3203.4,3203.3,0.001]
[1763261693700,0.9704,3203.4,3202.9,0.001]
[1763261693998,0.035,3203.0,3202.6,0.001]
[1763261694199,0.4915,3202.7,3202.6,0.001]
[1763261694363,0.4915,3202.7,3202.4,0.001]
[1763261694692,0.0386,3202.5,3202.4,0.001]
[1763261695097,0.5109,3202.5,3202.4,0.001]
[1763261698611,0.0386,3202.5,3202.4,0.001]
[1763261698789,0.4723,3202.8,3202.4,0.001]
[1763261699521,0.4961,3202.5,3202.4,0.001]
[1763261700087,0.9684,3202.5,3202.4,0.001]
[1763261700921,0.4961,3202.5,3202.4,0.001]
[1763261701985,0.9684,3202.5,3202.4,0.001]
[1763261702383,0.4961,3202.5,3202.4,0.001]
[1763261702820,0.9684,3202.5,3202.4,0.001]
[1763261703124,0.4723,3203.2,3202.4,0.4875]
[1763261703310,0.4723,3203.1,3202.5,0.0312256]
[1763261703510,0.49201886,3203.4,3202.6,0.03122462]
[1763261703511,0.002,3203.4,3202.6,0.03122462]
[1763261703687,0.4743,3203.4,3202.4,0.4875]
[1763261704955,0.4743,3203.4,3202.4,0.971]
[1763261705232,0.002,3203.4,3202.5,0.5147256]
[1763261705435,0.002,3203.4,3202.5,0.4835]
[1763261705612,0.002,3203.4,3202.6,0.16182408]
[1763261706015,0.002,3203.4,3202.6,0.4835]
[1763261707539,0.002,3203.4,3203.3,1.052304]
[1763261707928,0.002,3203.4,3203.3,1.535804]
[1763261708244,0.002,3203.4,3203.3,5.79132546]
[1763261709424,0.002,3203.4,3203.3,2.6695448]
[1763261709738,0.002,3203.4,3203.3,6.99510109]
[1763261711030,0.002,3203.4,3203.3,11.44847155]
[1763261713156,0.002,3203.8,3203.4,1.5392448]
[1763261713307,0.002,3203.8,3203.7,7.2624206]
[1763261713508,0.002,3204.1,3203.8,1.5392448]
[1763261713750,0.002,3204.1,3204.0,0.887504]
[1763261714136,0.002,3204.1,3204.0,1.351704]
[1763261714338,0.002,3204.1,3204.0,6.41958113]
[1763261716049,0.002,3204.1,3204.0,5.60654342]
[1763261716251,0.002,3204.1,3204.0,5.6377544]
[1763261716549,0.002,3204.1,3204.0,7.0534788]
[1763261716742,0.002,3204.1,3204.0,7.02226782]
[1763261718126,0.002,3204.1,3204.0,7.94333566]
[1763261718328,0.002,3204.1,3204.0,7.48483566]
[1763261718518,0.4829,3204.1,3203.6,4.45337046]
[1763261718719,0.4829,3204.1,3203.7,1.1337408]
[1763261719757,0.002,3204.1,3203.6,0.405504]
[1763261720187,0.002,3204.1,3203.6,0.869704]
[1763261720490,0.002,3204.1,3203.8,0.405504]
[1763261720792,0.002,3204.1,3203.7,0.20034448]
[1763261720966,0.4585,3204.0,3203.4,1.5392448]
[1763261721487,0.4585,3204.0,3203.4,0.405504]
[1763261721691,0.4809,3203.5,3203.1,0.81233488]
[1763261721893,0.4767,3203.2,3202.7,0.81233488]
[1763261722191,0.4767,3203.2,3202.8,0.39347591]
[1763261722403,0.4767,3203.2,3202.6,4.25619714]
[1763261722602,0.1909,3203.9,3203.1,0.482]
[1763261722800,0.6494,3203.9,3203.1,0.523]
[1763261723252,0.6494,3203.9,3203.1,1.6567408]
[1763261723888,0.4809,3203.2,3202.5,0.99523488]
[1763261724099,0.4585,3203.8,3202.6,0.4642]
[1763261724298,0.4585,3203.8,3202.6,1.5979408]
[1763261724515,0.002,3204.1,3203.0,1.1337408]
[1763261724688,0.002,3204.1,3203.4,0.405504]
[1763261724998,0.002,3204.1,3203.6,0.405504]
[1763261725204,0.4585,3204.0,3203.5,0.48588745]
[1763261725506,0.6718,3203.6,3203.0,0.405504]
[1763261725856,1.1303,3203.6,3202.9,0.405504]
[1763261726512,0.1909,3203.6,3202.9,0.405504]
[1763261727006,0.4809,3203.0,3202.9,0.91807975]
[1763261727305,0.4585,3203.4,3202.9,0.405504]
[1763261727853,0.4809,3203.0,3202.5,1.5709671]
[1763261728057,0.4585,3203.4,3202.5,0.2543263]
[1763261728374,0.0624,3202.6,3202.4,0.001]
[1763261728786,0.1909,3202.9,3202.4,0.001]
[1763261729088,0.4585,3202.8,3202.5,0.001]
[1763261729453,0.4809,3202.6,3202.5,0.001]
[1763261729957,0.1909,3202.9,3202.5,0.001]
[1763261730390,0.4809,3202.6,3202.5,0.001]
[1763261730575,0.4585,3202.8,3202.5,0.001]
[1763261730779,0.1909,3202.9,3202.5,0.001]
[1763261731102,0.1909,3203.2,3202.5,0.001]
[1763261731585,0.4585,3203.1,3202.5,0.001]
[1763261734794,0.4647,3202.6,3202.5,0.001]
[1763261735156,0.9325,3202.6,3202.5,0.001]
[1763261738985,0.4678,3203.1,3202.5,0.001]
[1763261739679,0.4647,3202.6,3202.5,0.001]
[1763261741413,0.9325,3202.6,3202.5,0.001]
[1763261747125,0.405504,3202.5,3202.4,0.001]
[1763261747323,5.39587446,3202.5,3202.4,0.001]
[1763261747492,0.4608,3202.2,3201.7,0.001]
[1763261747691,0.6511,3201.8,3201.7,0.001]
[1763261748223,1.1189,3201.8,3201.7,0.001]
[1763261749027,1.1189,3201.8,3200.8,0.001]
[1763261749226,0.0771,3201.6,3200.8,0.001]
[1763261749719,0.4608,3201.3,3200.8,0.001]
[1763261750131,0.9286,3201.3,3200.8,0.001]
[1763261760725,0.4678,3201.6,3200.8,0.001]
[1763261761125,0.4647,3201.3,3200.8,0.001]
[1763261763249,0.4678,3201.6,3200.8,0.001]
[1763261763952,0.4678,3202.1,3201.5,0.4589]
[1763261764254,0.1864,3202.0,3201.5,0.4589]
[1763261764670,0.66,3202.0,3201.5,0.4589]